Cogmind - Beta 14 @@@ ROGUE MODE // 2024.08.19 @ 19:46:47 Player: JohnnyDongs Result: Destroyed by D-53 Grenadier with Mini Grenade Launcher Performance ------------- Evolutions (0) 0 Regions Visited (2) 400 Robots Destroyed (19) 95 Value Destroyed (449) 449 Prototype IDs (0) 0 Alien Tech Used (0) 0 Bonus (0) 0 TOTAL SCORE: 944 Bonus ------- None Cogmind --------- Core Integrity 0/250 Matter 238/300 Energy 93/100 System Corruption 5% Temperature Cool (0) Movement Core (400) Ox7 Location -10/Mines Parts ------- > --- POWER (1) -------- (None) > --- PROPULSION (2) --- (None) > --- UTILITY (2) ------ Large Storage Unit Light Armor Plating > --- WEAPON (2) ------- (None) > --- INVENTORY (15) --- Aluminum Leg Aluminum Leg Aluminum Leg Heat Sink Medium Battery (150) Medium Matter Pod (0) Medium Matter Pod (0) Medium Matter Pod (0) Light Armor Plating Light Armor Plating Light Armor Plating Peak State ------------ > --- POWER ------------ Ion Engine > --- PROPULSION ------- Aluminum Leg Aluminum Leg > --- UTILITY ---------- Large Storage Unit Structural Scanner > --- WEAPON ----------- Particle Gun Grenade Launcher > --- INVENTORY -------- Aluminum Leg Aluminum Leg Aluminum Leg Aluminum Leg Heat Sink Light Armor Plating Light Armor Plating Light Armor Plating Light Armor Plating Mining Laser [Rating: 9] Favorites ----------- Power Ion Engine Engine Ion Engine Propulsion Aluminum Leg Treads Light Treads Leg Aluminum Leg Utility Structural Scanner Device Structural Scanner Storage Large Storage Unit Protection Light Armor Plating Weapon Grenade Launcher Energy Gun Particle Gun Ballistic Gun Light Assault Rifle Launcher Grenade Launcher Special Weapon Mining Laser Build | -11 -10 -10 ------- Run | Yrd Mat Min Slots Evolved . | . . . Power . | . . . Propulsion . | . . . Utility . | . . . Weapon . | . . . Parts Attached 21 | 8 9 4 Power 3 | 2 1 . Engine 3 | 2 1 . Core . | . . . Reactor . | . . . Propulsion 6 | 4 1 1 Treads 2 | 2 . . Leg 4 | 2 1 1 Wheel . | . . . Hover . | . . . Flight . | . . . Utility 5 | . 3 2 Device 2 | . 2 . Storage 1 | . 1 . Processor . | . . . Hackware . | . . . Protection 2 | . . 2 Artifact . | . . . Weapon 7 | 2 4 1 Energy Gun 3 | 1 2 . Energy Cannon . | . . . Ballistic Gun 2 | 1 1 . Ballistic Cannon . | . . . Launcher 1 | . 1 . Special Weapon 1 | . . 1 Impact Weapon . | . . . Slashing Weapon . | . . . Piercing Weapon . | . . . Special Melee Weapon . | . . . Unidentified Prototypes . | . . . Parts Lost 11 | . 2 9 Power 1 | . . 1 Propulsion 4 | . 1 3 Utility 2 | . . 2 Weapon 4 | . 1 3 Highest Loss Streak 5 | . 2 5 To Critical Strikes . | . . . Average Slot Usage (%) 94 | . 95 82 Engine 13 | . 13 11 Leg 28 | . 28 28 Device 13 | . 14 2 Storage 10 | . 10 14 Protection 1 | . . 11 Energy Gun 8 | . 9 2 Ballistic Gun 6 | . 7 . Launcher 10 | . 10 2 Peak Build Rating 9 | 5 9 9 Average Rating 7 | 3 7 6 On Entrance 4 | . 5 9 Naked Turns . | . . . Heaviest Build 32 | 7 32 29 Greatest Support 20 | 20 20 20 Greatest Overweight (x) 2 | . 1 2 Average Overweight (x) . | . . 1 Largest Inventory Capacity 15 | 5 15 15 Average Capacity 12 | 5 12 15 Most Carried 15 | . 15 15 Average Carried 7 | . 7 12 Final Capacity 15 | 5 15 15 Final Carried 15 | . 15 11 Class Distribution -------------------- 100% | Mutant Dominant Class ---------------- Mutant | -10/Materials Mutant | -10/Mines Resources | -11 -10 -10 ----------- Run | Yrd Mat Min Matter Collected 508 | 187 291 30 Remotely . | . . . Salvage Created 412 | . 407 5 Parts 34 | . 34 . Haulers Intercepted 2 | . 2 . Recyclers Shooed . | . . . Parts Field Recycled . | . . . Retrieved Matter . | . . . Parts Self-Destructed . | . . . Prevented . | . . . Kills | -11 -10 -10 ------- Run | Yrd Mat Min Combat Hostiles Destroyed 14 | . 11 3 Guns 3 | . 3 . AOE 11 | . 8 3 Classes Destroyed 7 | . 6 1 Worker 1 | . 1 . Builder 3 | . 3 . Hauler 2 | . 2 . Operator 1 | . 1 . Watcher 1 | . 1 . Grunt 11 | . 11 . Assembled 3 | . . 3 Best Kill Streak 5 | . 5 3 Combat Bots Only 3 | . 3 3 Max Kills in Single Turn 3 | . 3 3 Gunslinging . | . . . Exploded 3 | . 2 3 Melee . | . . . Uniques/NPCs Destroyed . | . . . Combat | -11 -10 -10 -------- Run | Yrd Mat Min Hostile Shots Fired 88 | . 57 31 Missed 30 | . 23 7 Damage Taken 1157 | . 536 621 Core 262 | . 121 141 Absorbed by Shields . | . . . Regen/Repaired (Parts) 21 | . 21 . Core Remaining (%) 100 | 100 . . Volleys Fired 56 | . 53 3 Largest 1 | . 1 1 Hottest 65 | . 65 30 Shots Fired 56 | . 53 3 Gun 36 | . 36 . Cannon . | . . . Launcher 20 | . 17 3 Special . | . . . Kinetic 22 | . 22 . Thermal 14 | . 14 . Explosive 20 | . 17 3 Electromagnetic . | . . . Robot Hit Streak 5 | . 5 2 Robot Miss Streak 3 | . 3 2 Penetration Max . | . . . Secondary Targets . | . . . Shots Hit Robots 32 | . 31 1 Core Hits 49 | . 36 13 Critical Kills . | . . . Critical Parts Destroyed 1 | . 1 . Critical Strikes 2 | . 2 . Burn 1 | . 1 . Destroy 1 | . 1 . Melee Attacks . | . . . Impact . | . . . Slashing . | . . . Piercing . | . . . Sneak Attacks . | . . . Combat Hostiles . | . . . Follow-up Attacks . | . . . Damage Inflicted 1686 | . 1208 478 Guns 315 | . 315 . Cannons . | . . . Explosions 1371 | . 893 478 Melee . | . . . Ramming . | . . . Kinetic 184 | . 184 . Thermal 131 | . 131 . Explosive 1371 | . 893 478 Electromagnetic . | . . . Impact . | . . . Slashing . | . . . Piercing . | . . . Highest Corruption 5 | . . 5 Average Corruption 5 | . . 5 Corruption Purged . | . . . Corruption Blocked . | . . . Effects 1 | . . 1 Heat Flow Errors 1 | . . 1 Overload Shots . | . . . Overflow Damage . | . . . Projectiles . | . . . Explosions . | . . . Melee . | . . . Knockbacks . | . . . Impact . | . . . Kinetic . | . . . Secondary . | . . . Self-Inflicted Damage 61 | . 61 . Shots 4 | . 4 . Rammed . | . . . Targets Rammed . | . . . Kicked . | . . . Crushed . | . . . Highest Temperature 248 | . 192 248 Average Temperature 81 | . 73 98 Received Heat Transfer 359 | . 300 59 Siege Activations . | . . . Robots Corrupted . | . . . Combat Hostiles . | . . . Parts Fried . | . . . Impact Corruptions . | . . . Robots Melted . | . . . Combat Hostiles . | . . . Parts Melted 1 | . 1 . Heat Transferred 384 | . 384 . Parts Sabotaged . | . . . Parts Stolen . | . . . Parts Stripped . | . . . Power Chain Reactions . | . . . Alert | -11 -10 -10 ------- Run | Yrd Mat Min Peak Influence 305 | . 305 115 Initial 107 | . . 107 Average 129 | . 144 83 Maximum Alert Level 1 | . 1 . Low Security (%) 67 | 100 62 100 Level 1 32 | . 37 . Level 2 . | . . . Level 3 . | . . . Level 4 . | . . . Level 5 . | . . . High Security . | . . . Max Security . | . . . Squads Dispatched 4 | . 4 . Investigation 2 | . 2 . Extermination . | . . . Reinforcement 2 | . 2 . Assault . | . . . Garrison . | . . . Intercept . | . . . Searches Triggered . | . . . Construction Impeded . | . . . Haulers Reinforced . | . . . Active Scanning Responses . | . . . Cargo Convoy Interrupts . | . . . Stealth | -11 -10 -10 --------- Run | Yrd Mat Min Distress Signals 2 | . 2 . Communications Jammed . | . . . Distress Signals . | . . . Times Spotted 38 | . 17 21 Peak Tracking Total 20 | . 4 20 Tactical Retreats 2 | . 1 1 Traps | -11 -10 -10 ------- Run | Yrd Mat Min Traps Triggered 2 | . 2 . Indirectly . | . . . Trap Hack Attempts . | . . . Triggered . | . . . Disarmed . | . . . Reprogrammed . | . . . Reused . | . . . Traps Extracted . | . . . Installed . | . . . Triggered . | . . . Machines | -11 -10 -10 ---------- Run | Yrd Mat Min Machines Disabled 1 | . 1 . Max in Single Turn 1 | . 1 . Machines Repaired . | . . . Machines Dismantled . | . . . Machines Sabotaged . | . . . Overloaded Fab Kills . | . . . Hacking | -11 -10 -10 --------- Run | Yrd Mat Min Machines Accessed 4 | . 4 . Terminals 2 | . 2 . Fabricators . | . . . Repair Stations 1 | . 1 . Recycling Units 1 | . 1 . Scanalyzers . | . . . Garrison Access . | . . . Total Hacks 10 | . 10 . Successful 5 | . 5 . Failed 5 | . 5 . Catastrophic 3 | . 3 . Database Lockouts . | . . . Manual 2 | . 2 . Terminals 5 | . 5 . Fabricators . | . . . Repair Stations 2 | . 2 . Recycling Units 3 | . 3 . Scanalyzers . | . . . Garrison Access . | . . . Terminal Hacks . | . . . Fabricator Hacks . | . . . Repair Station Hacks 2 | . 2 . Scan Component 1 | . 1 . Repair 1 | . 1 . Recycling Unit Hacks 3 | . 3 . Process 1 | . 1 . Report Inventory 1 | . 1 . Retrieve Matter 1 | . 1 . Scanalyzer . | . . . Garrison Access Hacks . | . . . Unauthorized Hacks . | . . . Terminals . | . . . Fabricators . | . . . Repair Stations . | . . . Recycling Units . | . . . Scanalyzers . | . . . Garrison Access . | . . . Data Cores Recovered . | . . . Used . | . . . Hacking Detections 3 | . 3 . Full Trace Events 1 | . 1 . Feedback Events . | . . . Feedback Blocked . | . . . Robot Schematics Acquired . | . . . Robots Built . | . . . Authchips . | . . . Time . | . . . Total Robot Build Rating . | . . . Part Schematics Acquired . | . . . Parts Built . | . . . Authchips . | . . . Time . | . . . Total Part Build Rating . | . . . Parts Repaired 1 | . 1 . Time 26 | . 26 . Parts Recycled . | . . . Recycled Matter 39 | . 39 . Retrieved Matter 39 | . 39 . Retrieved Components . | . . . Parts Scanalyzed . | . . . Part Schematics Acquired . | . . . Parts Damaged . | . . . Bothacking | -11 -10 -10 ------------ Run | Yrd Mat Min Used RIF Installer . | . . . Robots Hacked . | . . . Non-combat . | . . . Combat . | . . . Robot Hacks Applied . | . . . Relay Couplers Released . | . . . Fabnet Peak Effective % . | . . . Robots Rewired . | . . . Allies Hacked . | . . . Hacks Repelled . | . . . Allies | -11 -10 -10 -------- Run | Yrd Mat Min Total Allies . | . . . Largest Group . | . . . Highest-Rated Group . | . . . Highest-Rated Ally . | . . . Total Orders . | . . . Ally Attacks . | . . . Total Damage . | . . . Kills . | . . . Allies Corrupted . | . . . Allies Melted . | . . . Intel | -11 -10 -10 ------- Run | Yrd Mat Min Robot Analysis Total . | . . . Derelict Logs Recovered . | . . . Drone Launches . | . . . Drone Recoveries . | . . . Exploration | -11 -10 -10 ------------- Run | Yrd Mat Min Turns Passed 715 | 51 606 58 Spaces Moved 338 | 34 284 20 Core 4 | 4 . . Treads 1 | 1 . . Legs 333 | 29 284 20 Wheels . | . . . Hover . | . . . Flight . | . . . Fastest Speed 50 | 50 120 190 Average Speed 157 | 112 160 197 Slowest Speed 260 | 160 190 260 Overloaded Moves . | . . . Propulsion Burnouts . | . . . Robots Hopped . | . . . Cave-ins Triggered . | . . . Exploration Rate (%) 22 | 3 56 7 Regions Visited 2 Branch Regions 1 Pre-discovered Areas . | . . . Known Exits Taken . | . . . Unknown Exits Taken 2 | 1 1 . Scrap Searched . | . . . Spaces Dug . | . . . Terrain Destroyed 106 | . 87 19 Melee . | . . . Projectile . | . . . AOE 106 | . 87 19 Terrain Rammed . | . . . Walls Destroyed . | . . . Machines Disabled . | . . . Actions | -11 -10 -10 --------- Run | Yrd Mat Min Total 462 | 44 382 36 Wait 25 | . 16 9 Move 336 | 33 283 20 Hop . | . . . Pick Up 18 | . 18 . Fast Attach 13 | 8 5 . Attach 7 | . 3 4 Detach . | . . . Swap 1 | . 1 . Drop 6 | 3 3 . Fire 56 | . 53 3 Melee . | . . . Ram . | . . . Kick . | . . . Crush . | . . . Escape Stasis . | . . . Rewire . | . . . Trap . | . . . Miscellaneous . | . . . Route ------- -11/Scrapyard -10/Materials (discovered 2 exits: [*Mat] / [*Min]) -10/Mines History --------- Turn | Location | Event 9 | -11/Scrapyard | Discovered new exit (range 16) 52 | -11/Scrapyard | Entered Materials 321 | -10/Materials | Build established: Mutant 331 | -10/Materials | Repaired Ion Engine 440 | -10/Materials | Discovered new exit (range 7) 594 | -10/Materials | Discovered new exit (range 13) 658 | -10/Materials | Entered Mines 659 | -10/Mines | Assembled infested the area 673 | -10/Mines | Core integrity fell below 50% 695 | -10/Mines | Lost 4 parts (1n1u2w) 712 | -10/Mines | Core integrity fell below 20% 716 | -10/Mines | Destroyed by D-53 Grenadier with Mini Grenade Launcher Last Messages --------------- 00674_ Knocked back. 00674_ G-47 Trooper system corrupted by crushing effect. 00674_ G-47 Trooper knocked back. 00675_ G-47 Trooper system terminally corrupted. 00676_ as-14105 destroyed. 00677_ as-83676 destroyed. 00677_ as-22499 destroyed. 00677_ as-96879 destroyed. 00677_ as-92898 destroyed. 00679_ as-28464 destroyed. 00681_ as-50015 destroyed. 00681_ as-73140 destroyed. 00681_ as-08392 destroyed. 00681_ as-42374 destroyed. 00708_ Ion Engine destroyed. 00710_ Aluminum Leg destroyed. 00712_ Lgt. Armor Plating destroyed. 00713_ Mining Laser destroyed. 00714_ Aluminum Leg destroyed. Map ----- +----------------------------------------------------+ | ????????????????????????????????????? | | ????????????????????????????????????? | | ????????????????????????????????????? | | ????????????????????????????????????? | | ????????????????????????????????????? | | ????????????????????????????????????? | | ????????????????????????????????????? | | ????????????????????????????????????? | | ????????????????????????????????????? | | ????????????????????????????????????? | | ????????????????????????????????????? | | ????????????????????????????????????? | | ????????????????????????????????????? | | ????????????????????????????????????? | | ????????????????????????????????????? | | ????????????????????????????????????? | | ????????????????????????????????????? | | ??????????????????????????????##????? | | ??????????????????????????#### ##???? | | ???????????????????????#### #???? | | ??????????????????????## # ##??? | | ?????????????????????## #??? | | ????????????????????## #??? | | ????????????????????# #??? | | ????????????????????# ##??? | | ?????????????????????# @ ##??? | | ?????????????????????# ##???? | | ????????????????##### ##???? | | ???????????????##### ##???? | | ???????????????### ###???? | | ???????????????## r d ####????? | | ???????????????## d ####??????? | | ?????????????? # ####???????? | | ?????????????? # #??????????? | | ????????????? # # ???????????? | | ?????????????? ???????????? | | ?????????????? ???????????? | | ????????????? ###???????????? | | ???????????? ##?????????????? | | ??????????# #######?????????????? | | ??????????## #########?????????????? | | ??????????#######???????????????????? | | ??????????#####?????????????????????? | | ????????????????????????????????????? | | ????????????????????????????????????? | | ????????????????????????????????????? | | ????????????????????????????????????? | | ????????????????????????????????????? | | ????????????????????????????????????? | | ????????????????????????????????????? | +----------------------------------------------------+ Best States ------------- Heat Dissipation 35 Energy Generation 10 Energy Capacity 250 Matter Stores 233 Matter Capacity 300 Sight Range 16 Terrain Scan Density 10 Armor Coverage 150 Evasion (%) 55 Item Schematics ----------------- None Robot Schematics ------------------ None Fabricated ------------ Nothing Alien Tech Used ----------------- None Achievements -------------- Hunted Challenges ------------ None Game ------ Seed RecoilDamperHammer Manual? 0 Play Time 00:12:30 Cumulative 19.3 hours Start 2024.08.19 @ 19:36:12 End 2024.08.19 @ 19:46:47 Sessions 1 Manual Loads 0 Difficulty Rogue Special Mode None Game No. 14 Rogue 14 Adventurer 0 Explorer 0 Win Type - Total 0 Types 0/0/0/0/0/0/0/0/0 Lore% 11 Gallery% 20 Achievement% 21 Wizard Run 0 Options --------- Layout 1 ASCII 0 Keyboard 0 Movement Numpad Keybinds 0 Fullscreen 1 Font 24/Smallcaps Map View 50x35 Zoom Use 0% Tactical HUD 1 Map Filters NONE Filters NONE Steam 1 RUN: 85d02454-ea2b-4336-a63b-36008998487f